fUST/lending_fUST_20240413
["ID","MTS","AMOUNT","RATE_DAILY","PERIOD"]
[322309675,1712944869413,-693.39301403,0.00024416,2]
[322309686,1712945230153,-563.18202203,0.00024414,2]
[322309687,1712945230174,-287.0,0.00024415,2]
[322309688,1712945230196,-287.0,0.00024415,2]
[322309689,1712945230218,-3909.66962315,0.00024416,2]
[322309690,1712945230238,-155.21440017,0.00024416,2]
[322309691,1712945230258,-261.35861209,0.00024416,2]
[322309770,1712945432266,-500.0,0.00024411,2]
[322309772,1712945432276,-304.0246345,0.00024412,2]
[322309774,1712945432284,-300.0,0.00024415,2]
[322309775,1712945432297,-195.40608294,0.00024416,2]
[322309828,1712945437744,-9338.11644208,0.00024416,2]
[322309829,1712945437755,-11239.17709772,0.00024663,2]
[322309830,1712945437766,-351.08873772,0.000249,2]
[322309831,1712945437778,-156.87945876,0.00025,2]
[322309832,1712945437791,-420.0,0.00026857,2]
[322309833,1712945437802,-160.410651,0.00027397,2]
[322309834,1712945437814,-159.872767,0.00027397,2]
[322309835,1712945437824,-219.5674095,0.00028564,2]
[322309836,1712945437836,-587.0,0.00029543,2]
[322309837,1712945437849,-173.718934,0.00031425,2]
[322309838,1712945437862,-166.666666,0.00031778,2]
[322309839,1712945437874,-823.0,0.00032497,2]
[322309840,1712945437886,-160.410651,0.00034703,2]
[322309841,1712945437898,-7484.31582654,0.00034727,4]
[322309842,1712945437909,-1267.46018084,0.00034728,12]
[322309843,1712945437921,-756.67450177,0.00034998,4]
[322309844,1712945437931,-285.68987584,0.00034999,4]
[322309845,1712945437941,-1544.78067024,0.00034999,4]
[322309846,1712945437952,-320.20971595,0.00034999,4]
[322309847,1712945437962,-2139.37289375,0.00034999,4]
[322309848,1712945437972,-669.27025172,0.00035,4]
[322309849,1712945437983,-596.49961109,0.00035,2]
[322309850,1712945437995,-1504.11646253,0.00035455,14]
[322309851,1712945438007,-1152.0,0.00035747,2]
[322309852,1712945438019,-166.666666,0.0003611,2]
[322309853,1712945438031,-150.0,0.00036206,2]
[322309854,1712945438045,-620.64069143,0.00036792,2]
[322309855,1712945438057,-620.50628811,0.00036867,2]
[322309856,1712945438070,-9154.10189308,0.00037,40]
[322309857,1712945438081,-2921.30204191,0.00037997,2]
[322309858,1712945438091,-1686.35154001,0.00037998,2]
[322309859,1712945438102,-10026.92839032,0.00038,2]
[322309860,1712945438112,-154.84515485,0.00038304,4]
[322309861,1712945438123,-2191.919775,0.00038306,4]
[322309862,1712945438133,-306.68336476,0.00038316,15]
[322309863,1712945438145,-407.81940835,0.00038316,15]
[322309864,1712945438158,-300.57962358,0.00038316,15]
[322309865,1712945438170,-61902.74183689,0.00038316,5]
[322309866,1712945438182,-250.0,0.00038317,14]
[322309867,1712945438196,-250.0,0.00038317,28]
[322309868,1712945438210,-565.23632466,0.00038317,30]
[322309869,1712945438223,-503.21021558,0.00038317,30]
[322309870,1712945438237,-87754.97214887,0.00038317,2]
[322309871,1712945438249,-19305.08810574,0.00038317,2]
[322309872,1712945438263,-164712.62748913,0.00038317,2]
[322309873,1712945438274,-55532.40224093,0.00038317,2]
[322309874,1712945438285,-779.78428984,0.00038317,2]
[322309875,1712945438300,-1188.73012933,0.00038317,14]
[322309876,1712945438311,-224.04878038,0.00038317,10]
[322309877,1712945438322,-285.9357454,0.00038317,2]
[322309878,1712945438332,-18482.66270319,0.00038317,2]
[322309879,1712945438344,-4079.95635994,0.00038317,2]
[322309880,1712945438355,-314.89606993,0.00038317,2]
[322309881,1712945438365,-149.999999,0.00038317,2]
[322309882,1712945438376,-1154.27863175,0.00038317,30]
[322309883,1712945438387,-280.5987415,0.00038317,2]
[322309884,1712945438397,-12999.999999,0.00038317,2]
[322309885,1712945438408,-9921.73794493,0.00038317,2]
[322309886,1712945438419,-13451.999999,0.00038317,2]
[322309887,1712945438430,-2702.83483731,0.00038317,2]
[322309888,1712945438440,-70343.23826767,0.00038317,32]
[322309889,1712945438451,-151.71050555,0.00038317,2]
[322309890,1712945438462,-197.22992668,0.00038317,30]
[322309891,1712945438472,-8546.72816983,0.00038317,31]
[322309892,1712945438483,-152.51300818,0.00038317,30]
[322309894,1712945438624,-27857.01594341,0.00038317,2]
[322309895,1712945438641,-507.67588246,0.00038317,30]
[322309896,1712945438651,-201.78556884,0.00038317,2]
[322309897,1712945438661,-155.36045823,0.00038317,2]
[322309898,1712945438671,-429.89113363,0.00038317,2]
[322309899,1712945438680,-28545.11163017,0.00038317,2]
[322309900,1712945438690,-1003.04606161,0.00038317,2]
[322309901,1712945438700,-327.16504891,0.00038317,30]
[322309902,1712945438709,-1001.62219754,0.00038317,2]
[322309903,1712945438720,-2726.83185342,0.00038317,2]
[322309904,1712945438730,-632.05280502,0.00038317,10]
[322309905,1712945438739,-264.34881452,0.00038342,7]
[322309906,1712945438748,-260.52844265,0.00038343,2]
[322309907,1712945438757,-635.29983458,0.00038392,4]
[322309908,1712945438767,-155.13931884,0.00038392,4]
[322309909,1712945438776,-409.29642858,0.00038392,4]
[322309910,1712945438786,-808.58214958,0.00038392,4]
[322309911,1712945438798,-385.93047377,0.00038392,4]
[322309912,1712945438807,-300.49517837,0.00038521,4]
[322309913,1712945438817,-74395.64606603,0.00038999,3]
[322309914,1712945438826,-12139.23771649,0.00039,2]
[322309915,1712945438837,-1613.0,0.00039321,3]
[322309916,1712945438847,-7009.2530447,0.000398,14]
[322309917,1712945438856,-183.20628721,0.00039999,30]
[322309918,1712945438865,-160.0,0.00039999,30]
[322309919,1712945438874,-366.35400671,0.0004,2]
[322309920,1712945438883,-357.65520002,0.0004,2]
[322309921,1712945438893,-800.32449875,0.0004,2]
[322309922,1712945438902,-7458.71627403,0.0004,2]
[322309923,1712945438911,-1573.33333301,0.0004,2]
[322309924,1712945438921,-4988.0,0.0004,2]
[322309925,1712945438930,-14731.81866854,0.0004,30]
[322309926,1712945438939,-3035.30605118,0.0004,15]
[322309927,1712945438948,-72214.46112829,0.0004,15]
[322309928,1712945439152,-20380.09409258,0.0004,15]
[322309930,1712945439168,-946.89413174,0.0004,15]
[322309931,1712945439188,-2352.47026199,0.0004,15]
[322310000,1712945439909,-26535.3630381,0.0004,15]
[322310001,1712945439923,-17625.20167505,0.0004,15]
[322310002,1712945439956,-2758.30061808,0.0004,15]
[322310029,1712945443036,-7724.4424946,0.0004,15]
[322310031,1712945443050,-3962.000006,0.0004,15]
[322310033,1712945443063,-1829.0,0.0004,15]
[322310041,1712945443158,-204939.75678861,0.0004,15]
[322310042,1712945443171,-20425.5,0.0004,15]
[322310142,1712945999271,33120.21599456,0.00025,7]
[322310143,1712945999302,48754.94185084,0.00025,7]
[322310144,1712946043741,9000.0,0.00024,7]
[322310145,1712946043773,11830.27059031,0.00024,7]
[322310146,1712946043803,18000.0,0.00024,7]
[322310147,1712946043832,79294.57156429,0.00024,7]
[322310148,1712946049228,500.0,0.00023999,2]
[322310150,1712946087313,-242.92908465,0.00024994,2]
[322310151,1712946087348,-154.84515485,0.00024995,2]
[322310152,1712946087382,-304.0246345,0.00024996,2]
[322310153,1712946087416,-887.37861442,0.00024997,2]
[322310154,1712946087449,-291.67382919,0.00024997,2]
[322310155,1712946087463,-116.29736478,0.00024997,2]
[322310182,1712946444138,-188.35631121,0.00027297,2]
[322310183,1712946444160,-164.058895,0.00027397,2]
[322310184,1712946444181,-164.266348,0.00027397,2]
[322310185,1712946444200,-154.84515485,0.00029997,2]
[322310186,1712946444220,-242.92908465,0.00029997,2]
[322310187,1712946444239,-500.0,0.00029998,2]
[322310188,1712946444261,-156.87945876,0.00029999,2]
[322310189,1712946444281,-164.058895,0.00034703,2]
[322310190,1712946444301,-164.266348,0.0003653,2]
[322310191,1712946444320,-2044.91142934,0.00037,2]
[322310192,1712946444341,-400.0,0.00037559,2]
[322310193,1712946444360,-1065.19,0.0003756,60]
[322310194,1712946444379,-1597.79,0.0003756,60]
[322310195,1712946444399,-798.9,0.0003756,60]
[322310196,1712946444419,-89.33427101,0.000399,2]
[322310203,1712946562330,-154.84515485,0.00029994,2]
[322310204,1712946562350,-614.80173114,0.00029995,2]
[322310205,1712946562369,-154.84515485,0.00039896,4]
[322310206,1712946562389,-2044.91142934,0.00039896,2]
[322310207,1712946562409,-500.0,0.00039897,2]
[322310208,1712946562430,-300.93320376,0.00039898,9]
[322310209,1712946562460,-1470.5796195,0.000399,2]
[322310210,1712946562491,-2191.919775,0.000399,4]
[322310211,1712946562516,-400.0,0.00039997,3]
[322310212,1712946562541,-173.67326272,0.00039998,4]
[322310213,1712946562569,-271.8195425,0.00039998,4]
[322310214,1712946562600,-215.764455,0.00039998,4]
[322310215,1712946562622,-155.45139245,0.00039998,4]
[322310216,1712946562650,-16904.2858321,0.00039998,4]
[322310217,1712946562675,-283.87772596,0.00039998,4]
[322310218,1712946562701,-241.11331488,0.00039998,2]
[322310219,1712946562724,-3260.88129171,0.00039998,4]
[322310220,1712946562749,-603.90560033,0.00039998,2]
[322310221,1712946562777,-2091.81921779,0.00039998,4]
[322310222,1712946562802,-2029.35454976,0.00039998,4]
[322310223,1712946562825,-155.21758575,0.00039998,4]
[322310224,1712946562854,-430.88976759,0.00039998,4]
[322310225,1712946562883,-675.98060973,0.00039998,4]
[322310226,1712946562910,-624.51294238,0.00039998,4]
[322310227,1712946562933,-241.96307711,0.00039998,4]
[322310228,1712946562955,-669.96677047,0.00039998,4]
[322310229,1712946562978,-279.09025491,0.00039999,4]
[322310230,1712946563005,-596.82555203,0.00039999,2]
[322310231,1712946563031,-325.0890793,0.00039999,4]
[322310232,1712946563053,-174.77974643,0.00039999,31]
[322310233,1712946563083,-30951.37091845,0.0004,5]
[322310234,1712946563108,-370515.20723022,0.0004,15]
[322310283,1712946633477,-202.66920007,0.000379,2]
[322310285,1712946633487,-197.94745985,0.00039898,2]
[322310288,1712946633498,-704.95092719,0.000399,4]
[322310303,1712946633591,-829.39291531,0.000399,4]
[322310307,1712946633602,-500.0,0.00039998,2]
[322310311,1712946633615,-400.0,0.00039998,3]
[322310314,1712946633624,-151.29309022,0.00039999,2]
[322310317,1712946633636,-391.9872,0.00039999,2]
[322310381,1712946638334,-997.31605049,0.00039999,2]
[322310383,1712946638596,-504.31508863,0.00039999,2]
[322310385,1712946638607,-158.55905996,0.00039999,4]
[322310386,1712946638622,-155.06181425,0.00039999,4]
[322310387,1712946638645,-3046.4,0.00039999,2]
[322310388,1712946638664,-3046.4,0.00039999,2]
[322310389,1712946638673,-15475.68545922,0.0004,5]
[322310390,1712946638683,-213923.50505801,0.0004,15]
[322310391,1712946638692,-4794.50390053,0.0004,2]
[322310392,1712946638702,-359.02314841,0.0004,2]
[322310393,1712946638711,-30000.0,0.0004,2]
[322310394,1712946638721,-1406.99083387,0.0004,4]
[322310395,1712946638731,-357.65520002,0.0004,2]
[322310396,1712946638740,-22689.27505103,0.0004,120]
[322310397,1712946638749,-1246.12071251,0.0004,4]
[322310398,1712946638761,-200.26900615,0.0004,4]
[322310399,1712946638770,-3046.4,0.00040129,2]
[322310400,1712946638781,-143586.18221811,0.0004013,2]
[322310401,1712946638790,-200.0,0.00040137,120]
[322310402,1712946638799,-154.51196234,0.00040455,30]
[322310403,1712946638808,-364.0,0.0004097,35]
[322310404,1712946638818,-246.0,0.0004097,35]
[322310405,1712946638827,-364.0,0.0004098,35]
[322310406,1712946638836,-246.0,0.0004098,35]
[322310407,1712946638845,-364.0,0.0004099,35]
[322310408,1712946638854,-246.0,0.0004099,35]
[322310409,1712946638863,-3046.4,0.00040999,2]
[322310410,1712946638872,-3046.4,0.00040999,2]
[322310411,1712946638882,-1061.56557096,0.00041,4]
[322310412,1712946638890,-571986.00704822,0.00041,30]
[322310413,1712946638899,-306.78991651,0.00041,120]
[322310414,1712946638912,-197.94745984,0.00041219,2]
[322310415,1712946638921,-153.0,0.00041319,2]
[322310416,1712946638930,-156.35832817,0.00041344,30]
[322310417,1712946638939,-443.50318009,0.00042,120]
[322310418,1712946638948,-160.410651,0.00042009,2]
[322310419,1712946638958,-164.058895,0.00042009,2]
[322310420,1712946638967,-1116.1273518,0.000424,120]
[322310421,1712946638977,-156.35832817,0.00042826,30]
[322310422,1712946638986,-202.66920007,0.000429,2]
[322310423,1712946638995,-172.39395477,0.00042962,4]
[322310424,1712946639005,-154.89158826,0.00042962,4]
[322310425,1712946639014,-310.09152766,0.00042962,4]
[322310426,1712946639023,-518.0408055,0.00042962,4]
[322310427,1712946639033,-526.76722116,0.00042962,4]
[322310428,1712946639043,-342.53022929,0.00042962,4]
[322310429,1712946639052,-5478.34252477,0.00043,4]
[322310430,1712946639062,-166.2585523,0.00043821,30]
[322310431,1712946639071,-560.0,0.00043998,3]
[322310432,1712946639080,-542.79005215,0.00044,2]
[322310433,1712946639089,-8523.17248174,0.00045,120]
[322310434,1712946639099,-5905.17384143,0.00045,30]
[322310435,1712946639108,-815.56910247,0.00045,20]
[322310436,1712946639118,-2616.9467954,0.00045,5]
[322310437,1712946639127,-199.0,0.00045,120]
[322310438,1712946639138,-209.66042833,0.00045,120]
[322310439,1712946639148,-8525.68273142,0.00045,120]
[322310440,1712946639161,-212679.0837005,0.00045,30]
[322310441,1712946639172,-306.0,0.00045068,2]
[322310442,1712946639183,-153.0,0.00045068,2]
[322310443,1712946639193,-153.0,0.00045068,2]
[322310444,1712946639203,-153.0,0.00045068,2]
[322310445,1712946639213,-153.0,0.00045068,2]
[322310447,1712946639223,-153.0,0.00045068,2]
[322310448,1712946639232,-153.0,0.00045068,2]
[322310450,1712946639241,-153.0,0.00045068,2]
[322310452,1712946639251,-307.4409899,0.00045068,2]
[322310454,1712946639260,-153.0,0.00045068,2]
[322310461,1712946639268,-153.0,0.00045068,2]
[322310463,1712946639377,-153.0,0.00045068,2]
[322310465,1712946639387,-153.0,0.00045068,2]
[322310467,1712946639396,-153.0,0.00045068,2]
[322310469,1712946639407,-153.0,0.00045068,2]
[322310470,1712946639419,-153.0,0.00045068,2]
[322310471,1712946639428,-153.0,0.00045068,2]
[322310472,1712946639437,-153.0,0.00045068,2]
[322310473,1712946639447,-153.0,0.00045068,2]
[322310474,1712946639455,-153.0,0.00045068,2]
[322310475,1712946639465,-153.0,0.00045068,2]
[322310476,1712946639474,-153.0,0.00045068,2]
[322310477,1712946639484,-153.0,0.00045068,2]
[322310478,1712946639494,-153.0,0.00045068,2]
[322310480,1712946639503,-153.0,0.00045068,2]
[322310481,1712946639513,-153.0,0.00045068,2]
[322310482,1712946639524,-153.0,0.00045068,2]
[322310483,1712946639534,-153.0,0.00045068,2]
[322310484,1712946639543,-153.0,0.00045068,2]
[322310486,1712946639552,-153.0,0.00045068,2]
[322310488,1712946639564,-153.0,0.00045068,2]
[322310490,1712946639573,-153.0,0.00045068,2]
[322310492,1712946639582,-153.0,0.00045068,2]
[322310493,1712946639591,-153.0,0.00045068,2]
[322310494,1712946639600,-153.0,0.00045068,2]
[322310495,1712946639610,-153.0,0.00045068,2]
[322310497,1712946639619,-153.0,0.00045068,2]
[322310499,1712946639628,-153.0,0.00045068,2]
[322310500,1712946639638,-202.8732917,0.00045068,2]
[322310501,1712946639647,-153.0,0.00045068,2]
[322310502,1712946639659,-153.0,0.00045068,2]
[322310503,1712946639668,-153.0,0.00045068,2]
[322310504,1712946639677,-153.0,0.00045068,2]
[322310506,1712946639686,-153.0,0.00045068,2]
[322310508,1712946639696,-153.0,0.00045068,2]
[322310509,1712946639705,-153.0,0.00045068,2]
[322310510,1712946639714,-153.0,0.00045068,2]
[322310511,1712946639723,-153.0,0.00045068,2]
[322310512,1712946639733,-153.0,0.00045068,2]
[322310513,1712946639742,-153.0,0.00045158,2]
[322310514,1712946639751,-394.5957826,0.00045158,2]
[322310515,1712946639760,-202.8732917,0.00045158,2]
[322310516,1712946639770,-202.8732917,0.00045158,2]
[322310517,1712946639780,-160.5859905,0.00045158,2]
[322310518,1712946639790,-154.51196234,0.00045629,30]
[322310519,1712946639800,-164.266348,0.00045662,2]
[322310520,1712946639810,-154.84515485,0.000459,4]
[322310521,1712946639819,-49999.999999,0.00045989,2]
[322310523,1712946639828,-10101.0,0.00046,4]
[322310524,1712946639837,-154.51196234,0.00046085,30]
[322310525,1712946639846,-155.89027091,0.00046092,30]
[322310526,1712946639855,-260749.22721212,0.0004698,120]
[322310527,1712946639864,-20390.6550848,0.00047,4]
[322310528,1712946639874,-202.66920007,0.000479,2]
[322310529,1712946639883,-783.0,0.00048398,3]
[322310530,1712946639892,-3373.7209399,0.00049,120]
[322310532,1712946639902,-544.707032,0.00049,68]
[322310533,1712946639913,-160.410651,0.00049315,2]
[322310535,1712946639923,-164.058895,0.00049315,2]
[322310536,1712946639931,-275.4,0.0004997,35]
[322310537,1712946639941,-251.11,0.0004997,35]
[322310538,1712946639950,-150.5,0.0004997,35]
[322310539,1712946639959,-2075.0,0.0004997,35]
[322310540,1712946639968,-162.0,0.0004997,35]
[322310542,1712946639978,-150.5,0.0004998,35]
[322310544,1712946639987,-150.5,0.0004998,35]
[322310545,1712946639996,-150.5,0.0004998,35]
[322310546,1712946640005,-2075.0,0.0004998,35]
[322310547,1712946640015,-162.0,0.0004998,35]
[322310548,1712946640025,-150.5,0.0004999,35]
[322310549,1712946640034,-150.5,0.0004999,35]
[322310550,1712946640044,-150.5,0.0004999,35]
[322310551,1712946640054,-162.0,0.0004999,35]
[322310552,1712946640062,-2075.0,0.0004999,35]
[322310553,1712946640072,-153.80479127,0.00049997,30]
[322310554,1712946640081,-154.84515485,0.0005,30]
[322310555,1712946640090,-265.06750381,0.0005,60]
[322310556,1712946640100,-124218.36483321,0.0005,120]
[322310557,1712946640108,-206.73252593,0.0005,20]
[322310558,1712946640117,-3232.81977295,0.0005,14]
[322310559,1712946640124,-95420.08217589,0.0005,120]
[322310560,1712946640132,-2659.36806832,0.0005,120]
[322310561,1712946640141,-236.81786063,0.0005,60]
[322310562,1712946640150,-565.58159184,0.0005,7]
[322310563,1712946640161,-151.0,0.0005,120]
[322310565,1712946640171,-300.0,0.000503,30]
[322310566,1712946640181,-178.73303,0.0005044,30]
[322310567,1712946640191,-164.394345,0.0005044,30]
[322310568,1712946640200,-20104.16784939,0.00051,120]
[322310569,1712946640210,-178.73303,0.00051071,30]
[322310570,1712946640220,-178.73303,0.00051701,30]
[322310571,1712946640230,-178.73303,0.00052332,30]
[322310572,1712946640240,-178.73303,0.00052962,30]
[322310573,1712946640250,-600.0,0.00053,90]
[322310574,1712946640260,-1097.0,0.00053237,10]
[322310575,1712946640271,-1001.66887625,0.00054,120]
[322310576,1712946640280,-4649.1251624,0.00054,120]
[322310577,1712946640290,-1001.04339247,0.00054,2]
[322310578,1712946640300,-156.35832817,0.00054362,60]
[322310579,1712946640311,-290.79,0.00054784,35]
[322310580,1712946640321,-361.85722909,0.00054787,4]
[322310581,1712946640331,-4275.5988282,0.00054793,4]
[322310582,1712946640341,-500.0,0.00054794,120]
[322310583,1712946640350,-500.0,0.00054794,120]
[322310584,1712946640360,-500.13092571,0.00054794,120]
[322310585,1712946640370,-500.0,0.00054794,120]
[322310586,1712946640380,-501.64572357,0.00054794,120]
[322310587,1712946640389,-517.37,0.00054794,120]
[322310588,1712946640399,-500.0,0.00054794,120]
[322310589,1712946640414,-500.0,0.00054794,120]
[322310590,1712946640427,-500.0,0.00054794,120]
[322310591,1712946640437,-500.0,0.00054794,120]
[322310592,1712946640447,-500.0,0.00054794,120]
[322310593,1712946640457,-500.0,0.00054794,120]
[322310594,1712946640468,-500.0,0.00054794,120]
[322310595,1712946640478,-500.0,0.00054794,120]
[322310596,1712946640488,-1965.93,0.00054794,120]
[322310597,1712946640498,-504.97991679,0.00054794,120]
[322310598,1712946640507,-500.0,0.00054794,120]
[322310599,1712946640519,-500.0,0.00054794,120]
[322310600,1712946640529,-417.90975819,0.00054794,120]
[322310601,1712946640538,-351.08884706,0.00054794,120]
[322310602,1712946640548,-501.20453944,0.00054794,120]
[322310603,1712946640559,-300.0,0.00054794,7]
[322310604,1712946640569,-500.75401144,0.00054794,120]
[322310605,1712946640579,-500.0,0.00054794,120]
[322310606,1712946640590,-500.0,0.00054794,120]
[322310607,1712946640601,-500.0,0.00054794,120]
[322310608,1712946640612,-500.0,0.00054794,120]
[322310609,1712946640623,-500.0,0.00054794,120]
[322310610,1712946640635,-500.0,0.00054794,120]
[322310611,1712946640645,-500.0,0.00054794,120]
[322310612,1712946640656,-500.0,0.00054794,120]
[322310613,1712946640671,-500.0,0.00054794,120]
[322310614,1712946640682,-500.0,0.00054794,120]
[322310615,1712946640693,-500.0,0.00054794,120]
[322310616,1712946640704,-506.91497064,0.00054794,120]
[322310617,1712946640715,-500.0,0.00054794,120]
[322310618,1712946640728,-500.0,0.00054794,120]
[322310619,1712946640739,-500.0,0.00054794,120]
[322310620,1712946640750,-500.0,0.00054794,120]
[322310621,1712946640762,-500.0,0.00054794,120]
[322310622,1712946640773,-613.34149753,0.00054794,120]
[322310623,1712946640783,-500.0,0.00054794,120]
[322310624,1712946640793,-500.0,0.00054794,120]
[322310625,1712946640803,-502.34184716,0.00054794,120]
[322310626,1712946640812,-500.28658205,0.00054794,120]
[322310627,1712946640822,-238.52932012,0.00054794,120]
[322310628,1712946640832,-500.0,0.00054794,120]
[322310629,1712946640842,-151.0,0.00054794,120]
[322310630,1712946640851,-500.0,0.00054794,120]
[322310631,1712946640861,-302.0,0.00054794,2]
[322310632,1712946640870,-500.0,0.00054794,120]
[322310633,1712946640880,-516.20327059,0.00054794,120]
[322310634,1712946640890,-501.32324898,0.00054794,120]
[322310635,1712946640899,-500.0,0.00054794,120]
[322310636,1712946640908,-574.41947554,0.00054794,120]
[322310637,1712946640921,-500.0,0.00054794,120]
[322310638,1712946640930,-500.0,0.00054794,14]
[322310639,1712946640939,-500.0,0.00054794,120]
[322310640,1712946640949,-550.7,0.00054794,120]
[322310641,1712946640958,-500.0,0.00054794,120]
[322310642,1712946640969,-500.0,0.00054794,120]
[322310643,1712946640980,-500.0,0.00054794,120]
[322310644,1712946640990,-440.23207232,0.00054794,120]
[322310645,1712946641001,-500.0,0.00054794,120]
[322310646,1712946641011,-500.0,0.00054794,120]
[322310647,1712946641022,-500.0,0.00054794,120]
[322310648,1712946641031,-500.0,0.00054794,120]
[322310649,1712946641042,-500.0,0.00054794,120]
[322310650,1712946641051,-500.0,0.00054794,120]
[322310651,1712946641061,-500.0,0.00054794,120]
[322310652,1712946641070,-500.0,0.00054794,120]
[322310653,1712946641080,-500.0,0.00054794,120]
[322310654,1712946641089,-500.0,0.00054794,120]
[322310655,1712946641098,-500.0,0.00054794,120]
[322310656,1712946641107,-500.0,0.00054794,120]
[322310657,1712946641117,-500.0,0.00054794,120]
[322310658,1712946641128,-500.0,0.00054794,120]
[322310659,1712946641138,-500.0,0.00054794,120]
[322310660,1712946641147,-500.0,0.00054794,120]
[322310661,1712946641159,-500.0,0.00054794,120]
[322310662,1712946641172,-500.0,0.00054794,120]
[322310663,1712946641182,-500.0,0.00054794,120]
[322310664,1712946641192,-500.0,0.00054794,120]
[322310665,1712946641202,-500.0,0.00054794,120]
[322310666,1712946641212,-509.89917167,0.00054794,120]
[322310667,1712946641223,-500.0,0.00054794,120]
[322310668,1712946641234,-500.0,0.00054794,120]
[322310669,1712946641244,-500.0,0.00054794,120]
[322310670,1712946641254,-500.0,0.00054794,120]
[322310671,1712946641265,-500.0,0.00054794,120]
[322310672,1712946641275,-1000.0,0.00054794,7]
[322310673,1712946641285,-500.0,0.00054794,120]
[322310674,1712946641300,-500.0,0.00054794,120]
[322310675,1712946641310,-500.0,0.00054794,120]
[322310676,1712946641319,-500.0,0.00054794,120]
[322310677,1712946641329,-500.0,0.00054794,120]
[322310678,1712946641339,-500.0,0.00054794,120]
[322310679,1712946641348,-504.78489958,0.00054794,120]
[322310680,1712946641358,-500.0,0.00054794,120]
[322310681,1712946641367,-500.0,0.00054794,120]
[322310682,1712946641377,-500.0,0.00054794,120]
[322310683,1712946641460,-500.0,0.00054794,120]
[322310684,1712946641470,-500.0,0.00054794,120]
[322310685,1712946641479,-500.0,0.00054794,120]
[322310686,1712946641495,-500.0,0.00054794,120]
[322310687,1712946641505,-500.0,0.00054794,120]
[322310688,1712946641515,-233.5454295,0.00054794,120]
[322310689,1712946641525,-500.0,0.00054794,7]
[322310690,1712946641536,-374.61535197,0.00054794,120]
[322310691,1712946641546,-487.54079071,0.00054794,120]
[322310692,1712946641556,-619.7987976,0.00054794,120]
[322310693,1712946641567,-500.0,0.00054794,120]
[322310694,1712946641578,-500.0,0.00054794,120]
[322310695,1712946641587,-500.0,0.00054794,120]
[322310696,1712946641597,-500.0,0.00054794,120]
[322310697,1712946641607,-500.0,0.00054794,120]
[322310698,1712946641617,-500.0,0.00054794,120]
[322310699,1712946641627,-500.0,0.00054794,120]
[322310700,1712946641638,-500.0,0.00054794,120]
[322310701,1712946641647,-586.09549858,0.00054794,120]
[322310702,1712946641658,-500.0,0.00054794,120]
[322310703,1712946641678,-503.14677591,0.00054794,120]
[322310704,1712946641688,-500.0,0.00054794,120]
[322310705,1712946641698,-500.0,0.00054794,120]
[322310706,1712946641708,-1580.67,0.00054794,120]
[322310707,1712946641718,-500.0,0.00054794,120]
[322310708,1712946641730,-522.42007486,0.00054794,120]
[322310709,1712946641739,-500.0,0.00054794,120]
[322310710,1712946641748,-500.0,0.00054794,120]
[322310711,1712946641758,-500.0,0.00054794,120]
[322310712,1712946641767,-500.0,0.00054794,120]
[322310713,1712946641777,-500.0,0.00054794,120]
[322310714,1712946641788,-500.32403526,0.00054794,120]
[322310715,1712946641797,-500.0,0.00054794,120]
[322310716,1712946641806,-500.0,0.00054794,120]
[322310717,1712946641816,-500.0,0.00054794,120]
[322310718,1712946641825,-500.0,0.00054794,120]
[322310719,1712946641836,-500.0,0.00054794,120]
[322310720,1712946641846,-500.0,0.00054794,120]
[322310721,1712946641856,-500.0,0.00054794,120]
[322310722,1712946641867,-500.0,0.00054794,120]